Cogmind - Beta 13 *** ADVENTURER MODE // 2024.04.06 @ 18:26:29 Player: Catalyst Result: Destroyed by as-16191 with Assembled Rifle Performance ------------- Evolutions (0) 0 Regions Visited (2) 400 Robots Destroyed (4) 20 Value Destroyed (125) 125 Prototype IDs (0) 0 Alien Tech Used (0) 0 Bonus (-14) -14 TOTAL SCORE: 531 Bonus ------- Friendly Fire -14 Cogmind --------- Core Integrity 0/250 Matter 300/300 Energy 78/100 System Corruption 6% Temperature Cool (0) Movement Core (50) Location -10/Mines Parts ------- > --- POWER (1) -------- (None) > --- PROPULSION (2) --- (None) > --- UTILITY (2) ------ (None) > --- WEAPON (2) ------- (None) > --- INVENTORY (5) ---- Aluminum Leg Wheel Wheel Peak State ------------ > --- POWER ------------ Light Nuclear Core > --- PROPULSION ------- Aluminum Leg Aluminum Leg > --- UTILITY ---------- Heat Sink Medium Matter Pod > --- WEAPON ----------- EM Pulse Gun Small Laser > --- INVENTORY -------- Aluminum Leg Aluminum Leg Wheel Wheel Assault Rifle [Rating: 9] Favorites ----------- Power Light Ion Engine Engine Light Ion Engine Power Core Light Nuclear Core Propulsion Aluminum Leg Leg Aluminum Leg Utility Heat Sink Device Heat Sink Storage Medium Matter Pod Weapon Small Laser Energy Gun Small Laser Ballistic Gun Assault Rifle Build | -11 -10 -10 ------- Run | Yrd Mat Min Slots Evolved . | . . . Power . | . . . Propulsion . | . . . Utility . | . . . Weapon . | . . . Parts Attached 12 | 6 . 6 Power 2 | 1 . 1 Engine 1 | 1 . . Core 1 | . . 1 Reactor . | . . . Propulsion 4 | 2 . 2 Treads . | . . . Leg 4 | 2 . 2 Wheel . | . . . Hover . | . . . Flight . | . . . Utility 3 | 1 . 2 Device 2 | 1 . 1 Storage 1 | . . 1 Processor . | . . . Hackware . | . . . Protection . | . . . Artifact . | . . . Weapon 3 | 2 . 1 Energy Gun 2 | 2 . . Energy Cannon . | . . . Ballistic Gun 1 | . . 1 Ballistic Cannon . | . . . Launcher . | . . . Special Weapon . | . . . Impact Weapon . | . . . Slashing Weapon . | . . . Piercing Weapon . | . . . Special Melee Weapon . | . . . Unidentified Prototypes . | . . . Parts Lost 7 | . . 7 Power 1 | . . 1 Propulsion 2 | . . 2 Utility 2 | . . 2 Weapon 2 | . . 2 Highest Loss Streak 7 | . . 7 To Critical Strikes . | . . . Average Slot Usage (%) 87 | . 85 88 Engine 11 | . 14 10 Core 2 | . . 2 Leg 27 | . 28 27 Device 13 | . 14 13 Storage 3 | . . 4 Energy Gun 27 | . 28 27 Naked Turns 8 | . . 8 Heaviest Build 11 | 7 7 11 Greatest Support 20 | 20 20 20 Greatest Overweight (x) . | . . . Average Overweight (x) . | . . . Largest Inventory Capacity 5 | 5 5 5 Average Capacity 5 | 5 5 5 Most Carried 5 | 4 5 5 Average Carried 4 | 2 4 4 Final Capacity 5 | 5 5 5 Final Carried 5 | 4 5 3 Class Distribution -------------------- 100% | Mutant Dominant Class ---------------- Mutant | -10/Materials Mutant | -10/Mines Resources | -11 -10 -10 ----------- Run | Yrd Mat Min Matter Collected 380 | 260 . 120 Remotely . | . . . Salvage Created 156 | 36 . 120 Parts 9 | 2 . 7 Haulers Intercepted . | . . . Recyclers Shooed . | . . . Parts Field Recycled . | . . . Retrieved Matter . | . . . Parts Self-Destructed . | . . . Prevented . | . . . Kills | -11 -10 -10 ------- Run | Yrd Mat Min Combat Hostiles Destroyed 4 | 1 . 3 Guns 3 | . . 3 AOE 1 | 1 . . Classes Destroyed 2 | 1 . 1 Swarmer 1 | . . 1 Grunt 3 | 1 . 2 Best Kill Streak 1 | 1 . 1 Combat Bots Only 1 | 1 . 1 Max Kills in Single Turn 1 | 1 . 1 Gunslinging . | . . . Exploded 1 | 1 . . Melee . | . . . Uniques/NPCs Destroyed . | . . . Combat | -11 -10 -10 -------- Run | Yrd Mat Min Hostile Shots Fired 84 | 2 8 74 Missed 28 | . 5 23 Damage Taken 767 | 41 34 692 Core 256 | 20 . 236 Absorbed by Shields . | . . . Ignored by Resistances 218 | 12 10 196 Core Remaining (%) 92 | 92 . . Volleys Fired 18 | 2 . 16 Largest 2 | 2 . 2 Hottest 80 | 80 . 80 Shots Fired 35 | 4 . 31 Gun 35 | 4 . 31 Cannon . | . . . Launcher . | . . . Special . | . . . Kinetic 1 | . . 1 Thermal 18 | 2 . 16 Explosive . | . . . Electromagnetic 16 | 2 . 14 Robot Hit Streak 19 | 4 . 19 Robot Miss Streak 3 | . . 3 Penetration Max . | . . . Secondary Targets . | . . . Shots Hit Robots 27 | 4 . 23 Core Hits 11 | 1 . 10 Critical Kills . | . . . Critical Parts Destroyed . | . . . Critical Strikes . | . . . Melee Attacks . | . . . Impact . | . . . Slashing . | . . . Piercing . | . . . Sneak Attacks . | . . . Combat Hostiles . | . . . Follow-up Attacks . | . . . Damage Inflicted 387 | 74 . 313 Guns 348 | 39 . 309 Cannons . | . . . Explosions 35 | 35 . . Melee . | . . . Ramming 4 | . . 4 Kinetic 14 | . . 14 Thermal 185 | 46 . 139 Explosive . | . . . Electromagnetic 184 | 28 . 156 Impact . | . . . Slashing . | . . . Piercing . | . . . Highest Corruption 6 | . 1 6 Average Corruption 1 | . 1 1 Corruption Purged . | . . . Corruption Blocked . | . . . Effects 3 | . . 3 Matter Fused 1 | . . 1 Energy Discharges 2 | . . 2 Overload Shots . | . . . Overflow Damage . | . . . Projectiles . | . . . Explosions . | . . . Melee . | . . . Knockbacks . | . . . Impact . | . . . Kinetic . | . . . Secondary . | . . . Self-Inflicted Damage 25 | 24 . 1 Shots 1 | 1 . . Rammed 2 | . . 2 Targets Rammed 2 | . . 2 Kicked . | . . . Crushed . | . . . Highest Temperature 60 | 60 . 18 Average Temperature 15 | 32 . 6 Received Heat Transfer 284 | 12 24 248 Siege Activations . | . . . Robots Corrupted . | . . . Combat Hostiles . | . . . Parts Fried . | . . . Impact Corruptions . | . . . Robots Melted . | . . . Combat Hostiles . | . . . Parts Melted . | . . . Heat Transferred 400 | 75 . 325 Parts Sabotaged . | . . . Parts Stolen . | . . . Parts Stripped . | . . . Power Chain Reactions 1 | 1 . . Alert | -11 -10 -10 ------- Run | Yrd Mat Min Peak Influence 130 | 35 49 130 Initial 19 | . 19 15 Average 48 | 6 27 66 Maximum Alert Level . | . . . Low Security (%) 100 | 100 100 100 Level 1 . | . . . Level 2 . | . . . Level 3 . | . . . Level 4 . | . . . Level 5 . | . . . High Security . | . . . Max Security . | . . . Squads Dispatched . | . . . Investigation . | . . . Extermination . | . . . Reinforcement . | . . . Assault . | . . . Garrison . | . . . Intercept . | . . . Searches Triggered . | . . . Construction Impeded . | . . . Haulers Reinforced . | . . . Active Scanning Responses . | . . . Cargo Convoy Interrupts . | . . . Stealth | -11 -10 -10 --------- Run | Yrd Mat Min Distress Signals . | . . . Communications Jammed . | . . . Distress Signals . | . . . Times Spotted 30 | 1 2 27 Peak Tracking Total 22 | 1 2 22 Tactical Retreats 3 | . . 3 Traps | -11 -10 -10 ------- Run | Yrd Mat Min Traps Triggered 2 | . 2 . Indirectly . | . . . Trap Hack Attempts . | . . . Triggered . | . . . Disarmed . | . . . Reprogrammed . | . . . Reused . | . . . Traps Extracted . | . . . Installed . | . . . Triggered . | . . . Machines | -11 -10 -10 ---------- Run | Yrd Mat Min Machines Disabled . | . . . Max in Single Turn . | . . . Machines Repaired . | . . . Machines Dismantled . | . . . Machines Sabotaged . | . . . Overloaded Fab Kills . | . . . Hacking | -11 -10 -10 --------- Run | Yrd Mat Min Machines Accessed 2 | . 2 . Terminals 2 | . 2 . Fabricators . | . . . Repair Stations . | . . . Recycling Units . | . . . Scanalyzers . | . . . Garrison Access . | . . . Total Hacks 6 | . 6 . Successful 5 | . 5 . Failed 1 | . 1 . Catastrophic . | . . . Database Lockouts . | . . . Manual 3 | . 3 . Terminals 6 | . 6 . Fabricators . | . . . Repair Stations . | . . . Recycling Units . | . . . Scanalyzers . | . . . Garrison Access . | . . . Terminal Hacks 5 | . 5 . Record 3 | . 3 . Level Access Points 1 | . 1 . Branch Access Points 1 | . 1 . Fabricator Hacks . | . . . Repair Station Hacks . | . . . Recycling Unit Hacks . | . . . Scanalyzer . | . . . Garrison Access Hacks . | . . . Unauthorized Hacks . | . . . Terminals . | . . . Fabricators . | . . . Repair Stations . | . . . Recycling Units . | . . . Scanalyzers . | . . . Garrison Access . | . . . Data Cores Recovered . | . . . Used . | . . . Hacking Detections 1 | . 1 . Full Trace Events . | . . . Feedback Events . | . . . Feedback Blocked . | . . . Robot Schematics Acquired . | . . . Robots Built . | . . . Authchips . | . . . Time . | . . . Total Robot Build Rating . | . . . Part Schematics Acquired . | . . . Parts Built . | . . . Authchips . | . . . Time . | . . . Total Part Build Rating . | . . . Parts Repaired . | . . . Time . | . . . Parts Recycled . | . . . Recycled Matter . | . . . Retrieved Matter . | . . . Retrieved Components . | . . . Parts Scanalyzed . | . . . Part Schematics Acquired . | . . . Parts Damaged . | . . . Bothacking | -11 -10 -10 ------------ Run | Yrd Mat Min Used RIF Installer . | . . . Robots Hacked . | . . . Non-combat . | . . . Combat . | . . . Robot Hacks Applied . | . . . Relay Couplers Released . | . . . Fabnet Peak Effective % . | . . . Robots Rewired . | . . . Allies Hacked . | . . . Hacks Repelled . | . . . Allies | -11 -10 -10 -------- Run | Yrd Mat Min Total Allies . | . . . Largest Group . | . . . Highest-Rated Group . | . . . Highest-Rated Ally . | . . . Total Orders . | . . . Ally Attacks . | . . . Total Damage . | . . . Kills . | . . . Allies Corrupted . | . . . Allies Melted . | . . . Intel | -11 -10 -10 ------- Run | Yrd Mat Min Robot Analysis Total . | . . . Derelict Logs Recovered . | . . . Drone Launches . | . . . Drone Recoveries . | . . . Exploration | -11 -10 -10 ------------- Run | Yrd Mat Min Turns Passed 537 | 99 102 336 Spaces Moved 377 | 76 83 218 Core 26 | 15 . 11 Treads . | . . . Legs 351 | 61 83 207 Wheels . | . . . Hover . | . . . Flight . | . . . Fastest Speed 50 | 50 120 50 Average Speed 115 | 106 120 116 Slowest Speed 120 | 120 120 120 Overloaded Moves . | . . . Propulsion Burnouts . | . . . Robots Hopped . | . . . Cave-ins Triggered . | . . . Exploration Rate (%) 29 | 6 27 54 Regions Visited 2 Branch Regions 1 Pre-discovered Areas . | . . . Known Exits Taken 1 | . 1 . Unknown Exits Taken 1 | 1 . . Scrap Searched . | . . . Spaces Dug . | . . . Terrain Destroyed . | . . . Melee . | . . . Projectile . | . . . AOE . | . . . Terrain Rammed . | . . . Walls Destroyed . | . . . Machines Disabled . | . . . Actions | -11 -10 -10 --------- Run | Yrd Mat Min Total 441 | 87 85 269 Wait 27 | . 2 25 Move 375 | 75 82 218 Hop . | . . . Pick Up 5 | 4 1 . Fast Attach 6 | 6 . . Attach 3 | . . 3 Detach . | . . . Swap 3 | . . 3 Drop 2 | . . 2 Fire 18 | 2 . 16 Melee . | . . . Ram 2 | . . 2 Kick . | . . . Crush . | . . . Escape Stasis . | . . . Rewire . | . . . Trap . | . . . Miscellaneous . | . . . Route ------- -11/Scrapyard -10/Materials (discovered 4 exits: Mat x3 / *Min) -10/Mines History --------- Turn | Location | Event 2 | -11/Scrapyard | Met Revision 17 75 | -11/Scrapyard | Discovered new exit (range 8) 100 | -11/Scrapyard | Entered Materials 166 | -10/Materials | Identified exit to Materials 166 | -10/Materials | Identified exit to Mines 202 | -10/Materials | Entered Mines 308 | -10/Mines | Build established: Mutant 477 | -10/Mines | Assembled infested the area 482 | -10/Mines | Assisted by a Guerilla fighting off Assembled 528 | -10/Mines | Core integrity fell below 50% 530 | -10/Mines | Released all parts (2) 534 | -10/Mines | Core integrity fell below 20% 538 | -10/Mines | Destroyed by as-16191 with Assembled Rifle Last Messages --------------- 00511_ T-07 Excavator is excavating. 00521_ EM Pulse Gun destroyed. 00523_ Lgt. Nuclear Core destroyed. 00523_ System corrupted by crushing effect (+4). 00524_ Aluminum Leg destroyed. 00526_ Heat Sink destroyed. 00529_ Sml. Laser destroyed. 00529_ System corrupted by crushing effect (+1). 00529_ Med. Matter Pod destroyed. 00529_ Aluminum Leg destroyed. 00530_ T-07 Excavator is excavating. 00530_ Released Aluminum Leg. 00530_ Released Assault Rifle. 00530_ Slammed into as-69248. Ramming works as a last resort when unarmed or blocked, but can have serious negative consequences. 00531_ as-69248 destroyed. 00532_ System corrupted: Energy discharge (-26). 00532_ Slammed into as-28382. Map ----- +----------------------------------------------------+ | ?????????????????? ??????????? | | ?????????????????? ???????????? | | ?????????????????? ???????????? | | ?????????????????? ???????????? | | ?????????????????? #???????????? | | ??????????????????#$!#???????????? | | ??????????????????#!%#???????????? | | ??????????????????#==#???????????? | | ??????????????????# #???????????? | | ??????????????????# #???????????? | | ??????????????????# #???????????? | | ??????????????????#| #???????????? | | ??????????????????#%!#???????????? | | ??????????????????#= #???????????? | | ??????????####????# #####???????? | | ?????????## ###### !#???????? | | ????????## ### #???????? | | ???????## #?#*#???????? | | ???????# #######?# #######?? | | ???????# ##???????# #?? | | ???????# ##????????####### #?? | | ???????## ##?###########???# #?? | | ????????#=%##?## ##??# #?? | | ????????# %#### #??# #?? | | ????????# #???# #?? | | ????????#@ a #????# ### | | ????????#%####### ##????# # | | ????????#!#?????# #?????### # | | ????????# #?????# #???????# # | | ????????# #?????# % ##??????## | | ????????# #?????##[ #??????## | | ????????# #??????#= #?????## | | ????????# #??????# #?????# | | ???????? #??????# #????# | | ????????##???????# #????## | | ?????????????????# ##?????# | | ?????????????????# ###??????## | | ?????????????????# #????????## | | ?????????????????# #????????# | | ?????????????????# #????????# | | ?????????????????? ????????# | | ?????????????????? #????????## | | ??????????????????###?????????### | | ????????????????????????????????## | | ?????????????????????????????????# | | ?????????????????????????????????? | | ?????????????????????????????????? | | ?????????????????????????????????? | | ?????????????????????????????????? | | | +----------------------------------------------------+ Best States ------------- Heat Dissipation 35 Energy Generation 14 Energy Capacity 160 Matter Stores 385 Matter Capacity 400 Sight Range 16 Terrain Scan Density 10 Resistance: KI 20 Resistance: TH 20 Resistance: EX 20 Resistance: EM 20 Resistance: I 20 Resistance: S 20 Resistance: P 20 Evasion (%) 55 Offensive Hacking 10 Item Schematics ----------------- None Robot Schematics ------------------ None Fabricated ------------ Nothing Alien Tech Used ----------------- None Achievements -------------- None Challenges ------------ None Game ------ Seed TerrabombChargeCorpse Manual? 0 Play Time 00:12:54 Cumulative 39.4 hours Start 2024.04.05 @ 20:54:30 End 2024.04.06 @ 18:26:29 Sessions 7 Manual Loads 0 Difficulty Adventurer Special Mode None Game No. 9 Rogue 2 Adventurer 3 Explorer 4 Win Type - Total 2 Types 2/0/0/0/0/0/0/0/0 Lore% 43 Gallery% 49 Achievement% 54 Wizard Run 0 Options --------- Layout 2 ASCII 0 Keyboard 1 Movement Vi Keybinds 0 Fullscreen 1 Font 18/SmallcapsGlow Map View 51x52 Zoom Use 42% Tactical HUD 1 Map Filters NONE Filters NONE Steam 1 RUN: 090c88f1-820c-4321-8204-9bf5289c8409